bitfinex/quotes_SOLUSD_20250912
["timestamp","ask_amount","ask_price","bid_price","bid_amount"]
[1757720074780,0.06,242.27,242.26,35.27047141]
[1757720075155,0.75,242.27,242.26,35.29047141]
[1757720075960,0.75,242.27,242.26,35.27047141]
[1757720077078,0.75,242.27,242.26,1.65047141]
[1757720079069,0.75,242.27,242.22,33.62]
[1757720079279,0.69,242.26,242.22,33.62]
[1757720079578,0.69,242.25,242.19,33.62]
[1757720079777,0.69,242.24,242.19,59.6]
[1757720079979,0.69,242.23,242.21,1.65108456]
[1757720080280,0.69,242.22,242.21,27.65108456]
[1757720081588,0.69,242.22,242.21,1.65108456]
[1757720081767,0.69,242.22,242.11,0.04]
[1757720082086,0.69,242.21,242.19,1.65128903]
[1757720082392,0.69,242.2,242.16,33.6]
[1757720082692,0.69,242.19,242.16,4.2272938]
[1757720087889,0.67,242.19,242.16,4.2272938]
[1757720093298,0.67,242.21,242.16,4.2272938]
[1757720093467,0.67,242.2,242.16,4.2272938]
[1757720094288,0.7,242.19,242.16,4.2272938]
[1757720096278,0.7,242.22,242.16,4.2272938]
[1757720096679,0.7,242.21,242.16,4.2272938]
[1757720096983,0.7,242.2,242.16,4.2272938]
[1757720097286,0.7,242.19,242.16,4.2272938]
[1757720098888,0.7,242.18,242.16,37.8272938]
[1757720099274,0.7,242.18,242.16,33.6]
[1757720099468,0.06,242.27,242.14,26.0]
[1757720099675,0.7,242.26,242.15,33.6]
[1757720099874,0.7,242.25,242.15,33.6]
[1757720100069,0.7,242.24,242.16,14.04854412]
[1757720100393,0.06,242.27,242.23,26.0]
[1757720100571,0.06,242.27,242.23,59.6]
[1757720100772,0.06,242.27,242.24,0.04]
[1757720101178,0.06,242.27,242.24,3.0778535]
[1757720101575,0.06,242.27,242.25,0.04]
[1757720101990,0.06,242.27,242.26,33.6]
[1757720102294,0.06,242.27,242.26,35.25067574]
[1757720105008,0.06,242.27,242.26,15.6990494]
[1757720105178,0.06,242.27,242.26,49.2990494]
[1757720106397,0.06,242.27,242.26,49.2790494]
[1757720109190,0.06,242.27,242.26,65.91536773]
[1757720109389,0.06,242.27,242.26,69.85279473]
[1757720111079,0.1,242.29,242.28,26.00559401]
[1757720111280,0.1,242.29,242.28,64.22465792]
[1757720111488,0.1,242.29,242.28,30.68465792]
[1757720111687,0.1,242.29,242.28,64.26465792]
[1757720112283,0.1,242.29,242.28,67.33395609]
[1757720112804,0.7,242.41,242.32,52.00559401]
[1757720112986,0.7,242.41,242.4,26.0]
[1757720113188,0.7,242.41,242.4,59.58]
[1757720113488,0.7,242.41,242.4,26.0]
[1757720113688,0.7,242.41,242.4,59.56]
[1757720114091,0.7,242.41,242.4,62.62929817]
[1757720115093,0.7,242.41,242.4,3.06929817]
[1757720115686,0.7,242.41,242.32,4.22631833]
[1757720115893,0.7,242.4,242.35,12.37445088]
[1757720116101,0.7,242.39,242.3,16.94412473]
[1757720116306,0.7,242.38,242.31,33.56]
[1757720116506,0.7,242.37,242.32,12.37547182]
[1757720116703,0.7,242.36,242.32,12.37547182]
[1757720117008,0.7,242.35,242.32,12.37547182]
[1757720117198,0.7,242.34,242.32,12.37547182]
[1757720117402,0.7,242.33,242.32,12.37547182]
[1757720118310,0.7,242.33,242.31,26.0]
[1757720118311,0.7,242.33,242.25,4.22631833]
[1757720118539,0.7,242.32,242.28,10.30998186]
[1757720118706,0.7,242.31,242.28,10.30998186]
[1757720119024,0.7,242.3,242.18,0.04]
[1757720119223,0.7,242.3,242.2,12.37853562]
[1757720119523,0.7,242.29,242.23,26.0]
[1757720119696,0.7,242.28,242.24,33.56]
[1757720119895,0.7,242.27,242.26,26.0]
[1757720120814,0.7,242.27,242.25,4.15575294]
[1757720121009,4.12575294,242.38,242.25,37.71575294]
[1757720121010,0.7,242.26,242.25,37.71575294]
[1757720121704,0.7,242.26,242.25,4.15575294]
[1757720122018,0.7,242.26,242.25,0.03]
[1757720131620,26.0,242.39,242.25,0.03]
[1757720131828,0.7,242.28,242.25,0.03]
[1757720132299,0.7,242.27,242.25,0.03]
[1757720133096,20.06,242.44,242.28,26.0]
[1757720133421,0.7,242.37,242.32,26.0]
[1757720133619,0.7,242.36,242.33,33.54]
[1757720133826,0.7,242.38,242.33,33.54]
[1757720134001,0.7,242.37,242.33,33.54]
[1757720134621,0.06,242.44,242.33,33.54]
[1757720134829,0.7,242.36,242.33,33.54]
[1757720135118,0.7,242.35,242.32,27.65013098]
[1757720135308,0.7,242.34,242.28,59.54]
[1757720135508,0.7,242.33,242.28,59.54]
[1757720135717,0.7,242.32,242.28,59.54]
[1757720135910,0.7,242.31,242.28,59.54]
[1757720136222,0.7,242.3,242.28,59.54]
[1757720136925,0.7,242.3,242.18,15.65535962]
[1757720136926,0.7,242.29,242.18,3.27535962]
[1757720137099,0.7,242.29,242.25,33.57]
[1757720137295,0.7,242.28,242.25,33.57]
[1757720138917,3.42916137,242.38,242.25,33.57]
[1757720139124,0.7,242.36,242.25,33.57]
[1757720139417,0.7,242.35,242.25,33.57]
[1757720139609,0.7,242.34,242.25,33.57]
[1757720139814,0.7,242.33,242.25,33.57]
[1757720140020,0.7,242.32,242.26,12.37853562]
[1757720140319,0.7,242.31,242.25,0.03]
[1757720140532,3.42916137,242.3,242.25,0.03]
[1757720141040,0.76,242.29,242.25,0.03]
[1757720143551,0.06,242.29,242.25,0.03]
[1757720143723,0.06,242.29,242.26,26.0]
[1757720145322,0.7,242.28,242.25,4.15640983]
[1757720145540,0.7,242.28,242.25,0.03]
[1757720145720,0.06,242.29,242.25,0.03]
[1757720145928,0.06,242.29,242.26,26.0]
[1757720146137,0.76,242.29,242.26,26.0]
[1757720146331,0.68,242.28,242.25,0.03]
[1757720146848,0.68,242.27,242.25,0.03]
[1757720148233,0.68,242.26,242.25,26.03]
[1757720148932,0.68,242.26,242.25,0.03]
[1757720162774,4.10916137,242.26,242.25,0.03]
[1757720163458,0.68,242.26,242.25,0.03]
[1757720165465,0.72,242.26,242.25,0.03]
[1757720166451,4.14916137,242.26,242.25,0.03]
[1757720166658,4.14916137,242.26,242.22,0.03]
[1757720166858,3.42916137,242.23,242.22,0.03]
[1757720167269,4.14916137,242.23,242.22,0.03]
[1757720169166,0.72,242.23,242.22,0.03]
[1757720173056,4.14916137,242.23,242.22,0.03]
[1757720174380,0.72,242.23,242.22,0.03]
[1757720175479,4.14916137,242.27,242.22,0.03]
[1757720175781,0.72,242.27,242.22,0.03]
[1757720176082,0.72,242.26,242.22,0.03]
[1757720176470,0.72,242.25,242.22,0.03]
[1757720177474,0.72,242.24,242.22,0.03]
[1757720181878,0.72,242.26,242.22,0.03]
[1757720182262,0.72,242.25,242.22,0.03]
[1757720182977,0.72,242.24,242.22,0.03]
[1757720183374,0.72,242.25,242.22,0.03]
[1757720183765,0.72,242.24,242.22,0.03]
[1757720186489,2.19655743,242.23,242.22,0.03]
[1757720186987,2.85655743,242.23,242.22,0.03]
[1757720189272,3.08077139,242.23,242.22,0.03]
[1757720189586,3.74077139,242.23,242.22,0.03]
[1757720189771,0.66,242.23,242.22,0.03]
[1757720190484,3.74077139,242.23,242.22,0.03]
[1757720190679,0.66,242.23,242.22,0.03]
[1757720190887,3.08258443,242.25,242.22,0.03]
[1757720190888,0.66,242.26,242.22,0.03]
[1757720191271,3.74351289,242.25,242.22,0.03]
[1757720191471,0.66,242.25,242.22,0.03]
[1757720192787,33.44,242.28,242.22,0.03]
[1757720192992,0.66,242.24,242.22,0.03]
[1757720195688,32.6,242.28,242.22,0.03]
[1757720195883,3.08745337,242.27,242.22,0.03]
[1757720196080,3.08745337,242.26,242.22,0.03]
[1757720196292,2.19655743,242.27,242.22,0.03]
[1757720196293,3.08745337,242.25,242.22,0.03]
[1757720196488,3.08745337,242.24,242.22,0.03]
[1757720196674,6.32425569,242.27,242.22,0.03]
[1757720196876,3.08785709,242.26,242.22,0.03]
[1757720197180,3.08812782,242.25,242.22,0.03]
[1757720197373,3.08812782,242.24,242.22,0.03]
[1757720197576,3.08812782,242.23,242.22,0.03]
[1757720197795,3.74812782,242.23,242.22,0.03]
[1757720198487,3.74834588,242.23,242.22,0.03]
[1757720200905,3.08834588,242.23,242.22,0.03]
[1757720201107,0.06,242.25,242.22,0.71]
[1757720203481,0.06,242.25,242.22,0.03]
[1757720203704,0.06,242.25,242.23,0.68]
[1757720205205,0.06,242.25,242.24,0.68]
[1757720206484,0.06,242.25,242.22,0.03]
[1757720206689,0.06,242.25,242.23,0.68]
[1757720206882,0.06,242.25,242.24,0.68]
[1757720209504,0.06,242.25,242.22,0.03]
[1757720210608,0.06,242.25,242.22,0.75]
[1757720210814,0.06,242.25,242.22,0.03]
[1757720212699,0.74,242.25,242.22,0.03]
[1757720214911,0.06,242.25,242.23,0.67]
[1757720216811,0.06,242.25,242.24,0.67]
[1757720218018,2.96655743,242.25,242.23,0.03]
[1757720218219,3.08154906,242.24,242.23,0.03]
[1757720218403,3.08154906,242.24,242.22,0.03]
[1757720218606,0.71,242.23,242.22,0.03]
[1757720219823,2.90655743,242.23,242.22,0.03]
[1757720220502,0.06,242.25,242.22,0.03]
[1757720221103,0.06,242.25,242.15,26.0]
[1757720221308,0.77,242.25,242.15,26.0]
[1757720222016,2.19655743,242.23,242.11,33.34]
[1757720222331,2.90655743,242.22,242.14,26.0]
[1757720222497,0.71,242.22,242.14,26.0]
[1757720222698,0.71,242.22,242.12,26.0]
[1757720223312,0.797253,242.22,242.12,26.0]
[1757720223645,2.19655743,242.2,242.1,0.09]
[1757720224005,2.90655743,242.2,242.09,33.34]
[1757720224304,2.90655743,242.2,242.12,26.0]
[1757720226206,2.90655743,242.19,242.12,26.0]
[1757720227820,0.71,242.19,242.12,26.0]
[1757720228515,0.71,242.19,242.08,26.03]
[1757720228732,0.71,242.19,242.08,59.35]
[1757720233017,0.71,242.19,242.08,26.03]
[1757720233199,0.71,242.19,242.08,59.35]
[1757720233616,0.087253,242.18,242.08,59.35]
[1757720234124,2.19655743,242.13,242.08,0.03]
[1757720234303,2.90655743,242.13,242.08,0.03]
[1757720234703,0.71,242.13,242.08,0.03]
[1757720235108,2.90655743,242.12,242.08,0.03]
[1757720235319,2.19655743,242.11,242.08,0.03]
[1757720235513,2.90655743,242.11,242.08,0.03]
[1757720236221,0.71,242.11,242.08,0.03]
[1757720236420,0.71,242.18,242.09,0.09]
[1757720236614,0.087253,242.17,242.09,0.09]
[1757720237215,0.087253,242.17,242.08,0.03]
[1757720237426,0.087253,242.21,242.09,0.09]
[1757720238109,0.71,242.22,242.1,33.3]
[1757720238313,0.71,242.22,242.11,0.09]
[1757720240624,0.06,242.23,242.17,26.0]
[1757720240806,0.06,242.23,242.17,26.09]
[1757720242306,0.77,242.23,242.14,0.09]
[1757720242503,0.71,242.22,242.14,28.98]
[1757720242710,0.71,242.22,242.08,26.03]
[1757720242711,0.797253,242.21,242.13,26.0]
[1757720242907,2.19655743,242.19,242.12,1.65142538]
[1757720243125,0.71,242.18,242.12,1.65142538]
[1757720243335,0.71,242.17,242.12,1.65142538]
[1757720243518,0.71,242.17,242.1,59.3]
[1757720243519,0.087253,242.19,242.1,59.3]
[1757720243719,0.06,242.23,242.11,0.09]
[1757720243720,0.71,242.21,242.11,0.09]
[1757720244525,0.06,242.23,242.13,26.0]
[1757720244730,0.06,242.23,242.14,0.09]
[1757720244929,0.06,242.23,242.17,26.0]
[1757720245630,0.06,242.23,242.18,0.09]
[1757720245829,0.06,242.23,242.17,59.28]
[1757720246036,0.06,242.23,242.19,0.09]
[1757720246224,0.06,242.23,242.2,0.09]
[1757720246625,0.06,242.23,242.18,13.59559401]
[1757720246813,0.06,242.23,242.2,0.09]
[1757720247014,0.06,242.23,242.21,26.09]
[1757720247240,0.06,242.23,242.22,0.09]
[1757720247438,0.06,242.23,242.22,14.09844183]
[1757720249418,0.06,242.23,242.22,47.37844183]
[1757720249838,0.06,242.23,242.22,15.33613353]
[1757720250023,0.06,242.23,242.22,48.61613353]
[1757720250837,0.06,242.23,242.22,1.65053952]
[1757720251024,0.06,242.23,242.22,33.28]
[1757720252046,0.06,242.23,242.22,26.0]
[1757720252239,0.73,242.23,242.22,59.26]
[1757720252444,0.73,242.23,242.22,26.0]
[1757720253236,0.73,242.23,242.2,33.26]
[1757720253426,0.73,242.23,242.19,59.26]
[1757720253826,0.67,242.22,242.19,59.26]
[1757720254026,0.67,242.21,242.14,0.09]
[1757720254236,0.67,242.21,242.19,26.0]
[1757720254448,0.06,242.23,242.19,26.0]
[1757720254748,0.67,242.22,242.16,1.65115271]
[1757720256729,0.67,242.21,242.2,26.0]
[1757720258422,0.06,242.23,242.2,26.0]
[1757720258622,0.67,242.22,242.2,26.0]
[1757720259035,0.67,242.21,242.2,26.0]
[1757720259237,0.67,242.21,242.19,33.26]
[1757720260449,0.06,242.23,242.16,27.65115271]
[1757720260636,0.67,242.2,242.17,33.26]
[1757720260844,0.06,242.23,242.2,26.0]
[1757720261035,0.06,242.23,242.21,33.26]
[1757720261228,0.06,242.23,242.21,33.35]
[1757720261835,0.06,242.23,242.21,33.26]
[1757720262034,0.06,242.25,242.24,39.59559401]
[1757720262346,0.06,242.25,242.24,73.24840774]
[1757720262550,0.06,242.25,242.24,73.27840774]
[1757720263050,0.06,242.25,242.24,72.83559401]
[1757720263236,0.06,242.25,242.24,74.51586114]
[1757720263424,0.06,242.25,242.24,41.24586114]
[1757720263631,0.06,242.25,242.24,74.48586114]
[1757720265258,0.06,242.25,242.24,1.65026713]
[1757720265560,0.06,242.25,242.24,50.12]
[1757720266141,0.06,242.25,242.23,26.0]
[1757720266451,0.06,242.25,242.24,33.24]
[1757720267456,22.04171485,242.2,242.18,13.59559401]
[1757720267650,22.04171485,242.2,242.19,33.27]
[1757720268035,22.04171485,242.2,242.19,45.650579]
[1757720271355,22.04171485,242.2,242.19,45.680579]
[1757720272055,22.04171485,242.2,242.19,45.650579]
[1757720273045,22.04171485,242.2,242.19,12.410579]
[1757720273239,22.04171485,242.2,242.19,45.650579]
[1757720274960,22.70171485,242.2,242.19,0.03]
[1757720275161,22.70171485,242.2,242.19,33.27]
[1757720275742,22.04171485,242.2,242.19,33.27]
[1757720278438,22.04171485,242.2,242.19,46.86559401]
[1757720280466,22.04171485,242.2,242.19,59.24719495]
[1757720280672,22.70171485,242.2,242.19,46.86559401]
[1757720281445,22.04171485,242.2,242.19,46.86559401]
[1757720281946,22.70171485,242.2,242.19,46.86559401]
[1757720282870,22.70171485,242.2,242.19,13.62559401]
[1757720283069,22.70171485,242.2,242.19,33.27]
[1757720283252,22.70171485,242.2,242.19,26.03]
[1757720283451,22.70171485,242.2,242.19,59.27]
[1757720284773,22.70171485,242.2,242.19,26.03]
[1757720284961,22.70171485,242.2,242.19,59.25]
[1757720297757,22.04171485,242.2,242.19,59.25]
[1757720299485,22.04171485,242.2,242.19,26.03]
[1757720299785,22.04171485,242.2,242.19,59.25]
[1757720300384,22.70171485,242.2,242.19,72.84559401]
[1757720301072,22.70171485,242.2,242.19,39.62559401]
[1757720301284,22.70171485,242.2,242.19,72.84559401]
[1757720301594,22.70171485,242.2,242.19,46.82559401]
[1757720303882,22.70171485,242.2,242.19,0.03]
[1757720305472,22.78896785,242.2,242.19,0.03]
[1757720307582,24.04431542,242.2,242.19,0.03]
[1757720312274,28.17313457,242.2,242.19,0.03]
[1757720313285,27.11795457,242.2,242.19,0.03]
[1757720313881,25.862607,242.2,242.19,0.03]
[1757720314192,27.11795457,242.2,242.19,0.03]
[1757720314593,31.24677372,242.2,242.19,0.03]
[1757720314794,26.0,242.17,242.16,0.03]
[1757720315001,27.34260057,242.17,242.16,0.03]
[1757720315297,28.00260057,242.17,242.16,0.03]
[1757720317397,61.20260057,242.17,242.16,0.03]
[1757720317773,65.3319312,242.17,242.16,0.03]
[1757720318294,61.20260057,242.17,242.16,0.03]
[1757720318486,59.947253,242.17,242.16,0.03]
[1757720318675,61.20260057,242.17,242.16,0.03]
[1757720318876,61.18260057,242.17,242.16,0.03]
[1757720322480,83.92891549,242.17,242.16,0.03]
[1757720322679,83.92891549,242.17,242.14,0.03]
[1757720322680,13.59559401,242.16,242.14,0.03]
[1757720322974,14.93819458,242.15,242.14,0.03]
[1757720323176,15.59819458,242.15,242.14,0.03]
[1757720323794,61.18260057,242.15,242.14,0.03]
[1757720324100,33.927253,242.15,242.14,0.03]
[1757720324689,35.18260057,242.15,242.14,0.03]
[1757720325782,33.927253,242.15,242.14,0.03]
[1757720325995,35.18260057,242.15,242.14,0.03]
[1757720326203,33.927253,242.15,242.14,0.03]
[1757720328490,35.18260057,242.15,242.14,0.03]
[1757720331590,33.927253,242.15,242.14,0.03]
[1757720331813,35.18260057,242.15,242.14,0.03]
[1757720335892,33.927253,242.15,242.14,0.03]
[1757720337112,0.087253,242.15,242.14,0.03]
[1757720337311,33.16,242.15,242.14,0.03]
[1757720338392,33.16,242.15,242.14,0.12]
[1757720338995,33.16,242.15,242.14,0.03]
[1757720340515,33.247253,242.17,242.14,0.03]
[1757720342000,22.04171485,242.2,242.15,0.09]
[1757720343013,0.06,242.16,242.15,39.68559401]
[1757720347521,0.06,242.16,242.15,72.80559401]
[1757720350406,0.06,242.16,242.15,85.18719495]
[1757720352014,0.06,242.16,242.15,85.07719495]
[1757720353325,0.06,242.16,242.15,59.07719495]
[1757720353713,0.06,242.16,242.15,85.07719495]
[1757720354224,0.06,242.16,242.15,85.16719495]
[1757720355031,0.06,242.16,242.15,85.07719495]
[1757720357619,0.06,242.16,242.15,51.97719495]
[1757720358118,0.06,242.16,242.15,85.07719495]
[1757720359726,0.06,242.16,242.15,51.97719495]
[1757720359929,0.06,242.16,242.15,85.05719495]
[1757720362631,0.06,242.16,242.15,85.08719495]
[1757720363022,0.76,242.16,242.15,52.00719495]
[1757720363220,0.76,242.16,242.15,85.08719495]
[1757720363826,0.06,242.16,242.15,85.08719495]
[1757720365132,0.75,242.16,242.15,85.08719495]
[1757720367742,0.06,242.16,242.15,85.06719495]
[1757720368036,0.75,242.16,242.15,85.06719495]
[1757720368941,0.75,242.16,242.15,52.00719495]
[1757720369432,0.75,242.16,242.15,85.06719495]
[1757720369634,0.06,242.16,242.15,85.06719495]
[1757720370211,0.06,242.16,242.15,52.00719495]
[1757720370428,0.75,242.16,242.15,0.03]
[1757720370635,0.06,242.16,242.15,47.09856117]
[1757720370950,0.75,242.16,242.15,26.00923934]
[1757720371125,0.06,242.16,242.15,59.06923934]
[1757720371450,0.06,242.16,242.15,59.4822065]
[1757720371637,0.06,242.16,242.15,59.5722065]
[1757720371830,0.06,242.16,242.15,59.4822065]
[1757720372418,0.06,242.16,242.15,59.5722065]
[1757720373934,0.06,242.16,242.15,59.4822065]
[1757720374131,0.06,242.16,242.15,59.5722065]
[1757720374523,0.06,242.16,242.15,59.4822065]
[1757720375239,0.06,242.16,242.15,59.4622065]
[1757720375448,0.06,242.16,242.15,59.5522065]
[1757720375629,0.06,242.16,242.15,59.4622065]
[1757720379843,0.75,242.16,242.15,26.4222065]
[1757720380033,23.5777935,242.15,242.14,0.03]
[1757720380236,23.5777935,242.15,242.14,33.07]
[1757720380630,23.5777935,242.15,242.14,34.72115271]
[1757720381150,23.5777935,242.15,242.14,34.81115271]
[1757720381942,23.5777935,242.15,242.14,48.40674672]
[1757720382128,23.5777935,242.15,242.14,72.31610662]
[1757720384229,18.24111961,242.15,242.14,72.31610662]
[1757720386627,18.24111961,242.15,242.14,84.69610662]
[1757720387944,18.24111961,242.15,242.14,86.59610662]
[1757720389632,18.24111961,242.15,242.14,84.69610662]
[1757720389848,16.53101465,242.15,242.14,84.69610662]
[1757720390228,16.49492693,242.15,242.14,84.69610662]
[1757720390429,16.49492693,242.15,242.14,51.65610662]
[1757720390630,16.49492693,242.15,242.14,85.06909084]
[1757720390846,16.49492693,242.15,242.14,84.65610662]
[1757720392759,16.49492693,242.15,242.14,51.65610662]
[1757720392961,16.49492693,242.15,242.14,85.06909084]
[1757720393149,16.49492693,242.15,242.14,84.65610662]
[1757720397341,16.49492693,242.15,242.14,84.56610662]
[1757720398876,16.55492693,242.15,242.14,84.56610662]
[1757720400465,0.06,242.18,242.17,51.97559401]
[1757720400680,0.06,242.18,242.17,85.36852707]
[1757720400968,0.06,242.18,242.17,88.86495391]
[1757720401147,0.06,242.18,242.17,101.24246809]
[1757720404044,0.06,242.18,242.17,121.33246809]
[1757720404247,0.06,242.19,242.18,25.97559401]
[1757720404557,0.06,242.19,242.18,30.38786992]
[1757720404953,0.06,242.19,242.18,42.76334173]
[1757720405942,0.06,242.19,242.18,42.67334173]
[1757720407451,0.06,242.19,242.18,75.63334173]
[1757720408072,0.06,242.19,242.18,75.72334173]
[1757720408456,0.06,242.19,242.18,75.63334173]
[1757720412874,0.06,242.19,242.18,42.67334173]
[1757720413172,0.06,242.19,242.18,75.61334173]
[1757720413573,0.06,242.19,242.18,42.67334173]
[1757720413789,0.06,242.19,242.18,75.61334173]
[1757720418266,22.10171485,242.2,242.19,45.97559401]
[1757720418578,22.10171485,242.2,242.19,49.97495391]
[1757720419082,19.94958618,242.2,242.19,62.34889439]
[1757720419285,19.94958618,242.2,242.19,62.25889439]
[1757720419459,15.72684941,242.2,242.19,62.76179335]
[1757720419658,4.68439879,242.2,242.19,62.76179335]
[1757720419885,0.06,242.21,242.2,29.88495391]
[1757720420177,0.7,242.29,242.25,45.97559401]
[1757720420360,0.7,242.29,242.25,79.3083907]
[1757720420560,0.76,242.28,242.25,79.3083907]
[1757720420764,0.76,242.28,242.25,83.2177506]
[1757720420961,0.06,242.28,242.25,83.2177506]
[1757720421174,0.06,242.28,242.25,84.86720113]
[1757720421373,0.06,242.28,242.25,84.45440444]
[1757720422995,0.76,242.28,242.25,84.45440444]
[1757720423170,0.78,242.28,242.25,84.45440444]
[1757720427184,0.50022016,242.51,242.25,84.45440444]
[1757720427498,0.50022016,242.51,242.4,26.0]
[1757720427705,1.96130329,242.48,242.4,26.0]
[1757720427993,1.96130329,242.46,242.38,32.9]
[1757720428181,0.50022016,242.45,242.37,58.9]
[1757720429203,0.50022016,242.46,242.37,58.9]
[1757720429500,0.7,242.42,242.37,58.9]
[1757720429700,0.7,242.41,242.37,58.9]
[1757720429892,0.7,242.4,242.39,26.0]
[1757720430201,0.7,242.4,242.39,58.88]
[1757720430399,0.7,242.4,242.39,72.47559401]
[1757720431186,0.7,242.4,242.39,74.12490852]
[1757720432908,0.7,242.4,242.39,41.24490852]
[1757720433089,0.7,242.4,242.39,74.12490852]
[1757720434997,3.07265657,242.57,242.42,39.59559401]
[1757720435200,0.50022016,242.56,242.42,72.47559401]
[1757720435394,0.8,242.43,242.42,72.47559401]
[1757720435779,0.8,242.43,242.42,75.54825058]
[1757720436202,0.8,242.43,242.42,29.07265657]
[1757720436505,0.8,242.43,242.42,61.95265657]
[1757720438191,7.33174942,242.39,242.34,13.59559401]
[1757720438392,8.03174942,242.39,242.34,14.28559401]
[1757720438702,0.7,242.38,242.33,3.26483163]
[1757720438893,0.7,242.37,242.35,7.33174942]
[1757720439298,0.7,242.36,242.35,7.33174942]
[1757720439490,0.7,242.36,242.35,40.19174942]
[1757720439690,0.7,242.36,242.35,7.33174942]
[1757720439986,0.7,242.36,242.35,40.19174942]
[1757720440191,0.7,242.36,242.35,53.78734343]
[1757720440989,0.7,242.36,242.35,7.33174942]
[1757720441196,0.7,242.36,242.32,28.06]
[1757720441395,0.7,242.35,242.32,28.06]
[1757720441596,7.33174942,242.39,242.35,26.0]
[1757720441800,7.33174942,242.39,242.32,28.06]
[1757720442004,7.33174942,242.39,242.33,32.86]
[1757720442313,0.7,242.38,242.33,58.86]
[1757720442506,7.33174942,242.39,242.33,58.86]
[1757720442507,0.7,242.37,242.33,58.86]
[1757720442715,0.7,242.36,242.35,26.0]
[1757720445601,0.7,242.36,242.22,3.9093599]
[1757720445802,1.20022016,242.35,242.27,29.86]
[1757720446018,0.7,242.34,242.27,29.86]
[1757720446215,0.7,242.33,242.3,26.0]
[1757720446411,0.7,242.32,242.3,26.0]
[1757720446715,0.7,242.31,242.3,58.86]
[1757720447514,0.7,242.31,242.27,26.0]
[1757720447724,0.72,242.3,242.28,26.0]
[1757720447897,0.72,242.29,242.28,26.0]
[1757720451711,0.72,242.29,242.24,26.0]
[1757720451909,0.50022016,242.37,242.28,26.0]
[1757720452520,0.72,242.36,242.28,26.0]
[1757720452723,1.22022016,242.35,242.28,26.0]
[1757720452930,0.72,242.34,242.28,26.0]
[1757720453094,1.22022016,242.33,242.28,26.0]
[1757720453300,0.72,242.32,242.28,26.0]
[1757720453600,0.72,242.31,242.28,26.0]
[1757720453799,0.72,242.3,242.28,26.0]
[1757720454117,0.68,242.31,242.28,32.84]
[1757720454416,0.50022016,242.38,242.28,32.84]
[1757720454417,0.68,242.34,242.28,33.55]
[1757720455218,0.50022016,242.38,242.28,33.55]
[1757720455219,0.68,242.33,242.28,33.55]
[1757720455425,0.68,242.32,242.28,32.84]
[1757720455927,0.68,242.32,242.28,33.55]
[1757720457096,0.68,242.35,242.29,0.71]
[1757720457712,0.68,242.35,242.28,32.84]
[1757720457912,0.68,242.34,242.28,32.84]
[1757720458112,0.68,242.33,242.28,32.84]
[1757720458318,0.68,242.32,242.28,32.84]
[1757720459029,0.68,242.34,242.28,33.55]